Workbook

Sheet Лист1
A1: Школа | C1: Бурбашская СОШ | F1: Утвердил: | G1: должность | H1: Директор
A2: Типовое примерное меню приготавливаемых блюд | G2: фамилия | H2: Сибагатуллин М.Т
A3: Возрастная категория | E3: 7-11 лет | G3: дата | I3: Март | J3: 2025
H4: день | I4: месяц | J4: год
A5: Неделя | B5: День недели | C5: Прием пищи | D5: Раздел меню | E5: Блюда | F5: Вес блюда, г | G5: Белки | H5: Жиры | I5: Углеводы | J5: Калорийность | K5: № рецептуры | L5: Цена
A6: 1 | B6: 1 | C6: Завтрак | D6: гор.блюдо | E6: Котлеты "Аппетитные" мясо-куриные | F6: 90 | G6: 13.095 | H6: 13.749 | I6: 7.996 | J6: 208 | K6: ТТК от 01.11.2022
D7: гор.блюдо | E7: Каша гречневая вязкая | F7: 150 | G7: 3.462 | H7: 4.634 | I7: 21.786 | J7: 143 | K7: № 304/2015г Дели
D8: гор.напиток | E8: Чай с сахаром | F8: 208 | G8: 0.021 | H8: 0.005 | I8: 7.989 | J8: 32 | K8: ТТК от 2021г
D9: хлеб | E9: Хлеб ржано-пшеничный/ Хлеб пшеничный | F9: 40 | G9: 2.520 | H9: 0.360 | I9: 18.840 | J9: 91
D10: фрукты
D11: Конд. изд. | E11: Печенье весовое | F11: 12.8 | G11: 0.883 | H11: 1.766 | I11: 9.485 | J11: 57
D13: итого | F13: =SUM(F5:F12) -> 500.8 | G13: =SUM(G5:G12) -> 19.981 | H13: =SUM(H5:H12) -> 20.514 | I13: =SUM(I5:I12) -> 66.096 | J13: =SUM(J5:J12) -> 531
A14: =A6 -> 1 | B14: =B6 -> 1 | C14: Обед | D14: закуска
D15: 1 блюдо
D16: 2 блюдо
D17: гарнир
D18: напиток
D19: хлеб бел.
D20: хлеб черн.
D23: итого | F23: =SUM(F14:F22) -> 0 | G23: =SUM(G14:G22) -> 0 | H23: 0 | I23: 0 | J23: 0 | L23: =SUM(L14:L22) -> 0
A24: =A6 -> 1 | B24: =B6 -> 1 | C24: Итого за день: | F24: =F13+F23 -> 500.8 | G24: =G13+G23 -> 19.981 | H24: 20.514 | I24: 66.096 | J24: 531 | L24: =L13+L23 -> 0
A25: 1 | B25: 2 | C25: Завтрак | D25: гор.блюдо | E25: Жаркое из филе куриных грудок | F25: 200 | G25: 12.750 | H25: 17.790 | I25: 39.880 | J25: 371 | K25: ТТК №2738 от 7.12.2023
D26: гор.блюдо
D27: гор.напиток | E27: Чай с сахаром | F27: 208 | G27: 0.021 | H27: 0.005 | I27: 7.989 | J27: 32 | K27: ТТК от 2021г
D28: хлеб | E28: Хлеб ржано-пшеничный/ Хлеб пшеничный | F28: 40 | G28: 2.52 | H28: 0.36 | I28: 18.84 | J28: 91
D30: фрукты | E30: Плоды и ягоды свежие (яблоки) | F30: 100 | G30: 0.360 | H30: 0.360 | I30: 8.820 | J30: 42 | K30: № 338
D33: итого | F33: =SUM(F25:F32) -> 548 | G33: =SUM(G25:G32) -> 15.651 | H33: =SUM(H25:H32) -> 18.515 | I33: =SUM(I25:I32) -> 75.529 | J33: =SUM(J25:J32) -> 536
A34: =A25 -> 1 | B34: =B25 -> 2 | C34: Обед | D34: закуска
D35: 1 блюдо
D36: 2 блюдо
D37: гарнир
D38: напиток
D39: хлеб бел.
D40: хлеб черн.
D43: итого | F43: =SUM(F34:F42) -> 0 | G43: =SUM(G34:G42) -> 0 | H43: 0 | I43: 0 | J43: 0 | L43: =SUM(L34:L42) -> 0
A44: =A25 -> 1 | B44: =B25 -> 2 | C44: Итого за день: | F44: =F33+F43 -> 548 | G44: =G33+G43 -> 15.651 | H44: 18.515 | I44: 75.529 | J44: 536 | L44: =L33+L43 -> 0
A45: 1 | B45: 3 | C45: Завтрак | D45: гор.блюдо | E45: Сосиски отварные | F45: 100 | G45: 8.700 | H45: 11.500 | I45: 4.400 | J45: 156 | K45: №243/2015 Дели
D46: гор.блюдо | E46: Макароны твердых сортов отварные | F46: 150 | G46: 5.602 | H46: 5.068 | I46: 35.906 | J46: 212 | K46: №309/2015г Дели
D47: гор.напиток | E47: Напиток из урюка | F47: 200 | G47: 0.020 | I47: 7.990 | J47: 32 | K47: ТТК 2021г
D48: хлеб | E48: Хлеб ржано-пшеничный/ Хлеб пшеничный | F48: 40 | G48: 2.520 | H48: 0.360 | I48: 18.840 | J48: 91
D49: фрукты
D50: Конд. изд. | E50: Печенье весовое | F50: 12.8 | G50: 0.883 | H50: 1.766 | I50: 9.485 | J50: 57
D52: итого | F52: =SUM(F45:F51) -> 502.8 | G52: =SUM(G45:G51) -> 17.725 | H52: 18.694 | I52: 76.621 | J52: 548
A53: =A45 -> 1 | B53: =B45 -> 3 | C53: Обед | D53: закуска
D54: 1 блюдо
D55: 2 блюдо
D56: гарнир
D57: напиток
D58: хлеб бел.
D59: хлеб черн.
D62: итого | F62: =SUM(F53:F61) -> 0 | G62: =SUM(G53:G61) -> 0 | H62: 0 | I62: 0 | J62: 0 | L62: =SUM(L53:L61) -> 0
A63: =A45 -> 1 | B63: =B45 -> 3 | C63: Итого за день: | F63: =F52+F62 -> 502.8 | G63: =G52+G62 -> 17.725 | H63: 18.694 | I63: 76.621 | J63: 548 | L63: =L52+L62 -> 0
A64: 1 | B64: 4 | C64: Завтрак | D64: гор.блюдо | E64: Плов с говядиной | F64: 190 | G64: 15.44 | H64: 18.29 | I64: 51.2 | J64: 431 | K64: ТТК № 2737 от 07.12.2023
D65: гор.блюдо
D66: гор.напиток | E66: Чай с сахаром | F66: 208 | G66: 0.021 | H66: 0.005 | I66: 7.989 | J66: 32 | K66: ТТК от 2021г
D67: хлеб | E67: Хлеб ржано-пшеничный/ Хлеб пшеничный | F67: 42 | G67: 2.62 | H67: 0.38 | I67: 19.74 | J67: 95
D68: фрукты
E69: Салат из свеклы отварной (с маслом) | F69: 60 | G69: 1.33 | H69: 1.36 | I69: 1.14 | J69: 22 | K69: №52/2015г Дели
D71: итого | F71: =SUM(F64:F70) -> 500 | G71: =SUM(G64:G70) -> 19.411 | H71: =SUM(H64:H70) -> 20.035 | I71: =SUM(I64:I70) -> 80.069 | J71: =SUM(J64:J70) -> 580
A72: =A64 -> 1 | B72: =B64 -> 4 | C72: Обед | D72: закуска
D73: 1 блюдо
D74: 2 блюдо
D75: гарнир
D76: напиток
D77: хлеб бел.
D78: хлеб черн.
D81: итого | F81: =SUM(F72:F80) -> 0 | G81: =SUM(G72:G80) -> 0 | H81: 0 | I81: 0 | J81: 0 | L81: =SUM(L72:L80) -> 0
A82: =A64 -> 1 | B82: =B64 -> 4 | C82: Итого за день: | F82: =F71+F81 -> 500 | G82: =G71+G81 -> 19.411 | H82: 20.035 | I82: 80.069 | J82: 580 | L82: =L71+L81 -> 0
A83: 1 | B83: 5 | C83: Завтрак | D83: гор.блюдо | E83: Ёжики с рисом из мяса птицы в соусе для запекания | F83: 90 | G83: 9.768 | H83: 13.409 | I83: 9.117 | J83: 196 | K83: ТТК 2020 г
D84: гор.блюдо | E84: Пюре картофельное | F84: 150 | G84: 3.437 | H84: 4.556 | I84: 21.451 | J84: 144 | K84: №312/2015 Дели
D85: гор.напиток | E85: Чай с сахаром | F85: 208 | G85: 0.021 | H85: 0.005 | I85: 7.989 | J85: 32 | K85: ТТК от 2021г
D86: хлеб | E86: Хлеб ржано-пшеничный/ Хлеб пшеничный | F86: 40 | G86: 2.52 | H86: 0.36 | I86: 18.84 | J86: 91
D87: фрукты
D88: Конд. изд. | E88: Печенье весовое | F88: 12.8 | G88: 0.883 | H88: 1.766 | I88: 9.485 | J88: 57
D90: итого | F90: =SUM(F83:F89) -> 500.8 | G90: =SUM(G83:G89) -> 16.629 | H90: 20.096 | I90: 66.882 | J90: 520
A91: =A83 -> 1 | B91: =B83 -> 5 | C91: Обед | D91: закуска
D92: 1 блюдо
D93: 2 блюдо
D94: гарнир
D95: напиток
D96: хлеб бел.
D97: хлеб черн.
D100: итого | F100: =SUM(F91:F99) -> 0 | G100: =SUM(G91:G99) -> 0 | H100: 0 | I100: 0 | J100: 0 | L100: =SUM(L91:L99) -> 0
A101: =A83 -> 1 | B101: =B83 -> 5 | C101: Итого за день: | F101: =F90+F100 -> 500.8 | G101: =G90+G100 -> 16.629 | H101: 20.096 | I101: 66.882 | J101: 520 | L101: =L90+L100 -> 0
A102: 1 | B102: 6 | C102: Завтрак | D102: гор.блюдо | E102: Пельмени "Для умников и умниц" отварные с маслом | F102: 160 | G102: 16.156 | H102: 14.79 | I102: 38.063 | J102: 355 | K102: ТТК 2015г
D104: гор.напиток | E104: Чай с сахаром | F104: 208 | G104: 0.021 | H104: 0.005 | I104: 7.989 | J104: 32 | K104: ТТК от 2021г
D105: хлеб | E105: Хлеб ржано-пшеничный/ Хлеб пшеничный | F105: 42 | G105: 2.62 | H105: 0.38 | I105: 19.74 | J105: 95
D106: фрукты | E106: Плоды и ягоды свежие (яблоки) | F106: 100 | G106: 0.360 | H106: 0.360 | I106: 8.820 | J106: 42 | K106: №338
D109: итого | F109: =SUM(F102:F108) -> 510 | G109: =SUM(G102:G108) -> 19.157 | H109: =SUM(H102:H108) -> 15.535 | I109: =SUM(I102:I108) -> 74.612 | J109: 524
A110: =A102 -> 1 | B110: 6 | C110: Обед | D110: закуска
D111: 1 блюдо
D112: 2 блюдо
D113: гарнир
D114: напиток
D115: хлеб бел.
D116: хлеб черн.
D119: итого | F119: =SUM(F110:F118) -> 0 | G119: =SUM(G110:G118) -> 0 | H119: 0 | I119: 0 | J119: 0 | L119: =SUM(L110:L118) -> 0
A120: =A102 -> 1 | B120: =B102 -> 6 | C120: Итого за день: | F120: =F109+F119 -> 510 | G120: =G109+G119 -> 19.157 | H120: 15.535 | I120: 74.612 | J120: 524 | L120: =L109+L119 -> 0
A121: 2 | B121: 1 | C121: Завтрак | D121: гор.блюдо | E121: Ёжики мясные с рисом в соусе для запекания | F121: 90 | G121: 10.683 | H121: 12.909 | I121: 9.085 | J121: 195 | K121: ТТК от 09.07.2023
D122: гор.блюдо | E122: Макароны твердых сортов отварные | F122: 150 | G122: 5.602 | H122: 5.068 | I122: 35.906 | J122: 212 | K122: №309/2015г Дели
D123: гор.напиток | E123: Чай с сахаром | F123: 208 | G123: 0.021 | H123: 0.005 | I123: 7.989 | J123: 32 | K123: ТТК от 2021г
D124: хлеб | E124: Хлеб ржано-пшеничный/ Хлеб пшеничный | F124: 40 | G124: 2.520 | H124: 0.360 | I124: 18.840 | J124: 91
D125: фрукты
E126: Печенье весовое | F126: 12.8 | G126: 0.883 | H126: 1.766 | I126: 9.485 | J126: 57
D128: итого | F128: =SUM(F121:F127) -> 500.8 | G128: =SUM(G121:G127) -> 19.709 | H128: =SUM(H121:H127) -> 20.108 | I128: =SUM(I121:I127) -> 81.305 | J128: =SUM(J121:J127) -> 587
A129: =A121 -> 2 | B129: =B121 -> 1 | C129: Обед | D129: закуска
D130: 1 блюдо
D131: 2 блюдо
D132: гарнир
D133: напиток
D134: хлеб бел.
D135: хлеб черн.
D138: итого | F138: =SUM(F129:F137) -> 0 | G138: =SUM(G129:G137) -> 0 | H138: 0 | I138: 0 | J138: 0 | L138: =SUM(L129:L137) -> 0
A139: =A121 -> 2 | B139: =B121 -> 1 | C139: Итого за день: | F139: =F128+F138 -> 500.8 | G139: =G128+G138 -> 19.709 | H139: 20.108 | I139: 81.305 | J139: 587 | L139: =L128+L138 -> 0
A140: 2 | B140: 2 | C140: Завтрак | D140: гор.блюдо | E140: Плов с куриными грудками | F140: 200 | G140: 15.759 | H140: 18.583 | I140: 45.883 | J140: 414 | K140: ТТК 2021г Июль
D142: гор.напиток | E142: Чай с сахаром | F142: 208 | G142: 0.021 | H142: 0.005 | I142: 7.989 | J142: 32 | K142: ТТК от 2021г Дели
D143: хлеб | E143: Хлеб ржано-пшеничный/ Хлеб пшеничный | F143: 42 | G143: 2.62 | H143: 0.38 | I143: 19.74 | J143: 95
D144: фрукты
E145: Салат из свеклы отварной (с маслом) | F145: 60 | G145: 1.33 | H145: 1.36 | I145: 1.14 | J145: 22 | K145: №52/2015г Дели
D147: итого | F147: =SUM(F140:F146) -> 510 | G147: =SUM(G140:G146) -> 19.73 | H147: 20.328 | I147: 74.752 | J147: 563
A148: =A140 -> 2 | B148: =B140 -> 2 | C148: Обед | D148: закуска
D149: 1 блюдо
D150: 2 блюдо
D151: гарнир
D152: напиток
D153: хлеб бел.
D154: хлеб черн.
D157: итого | F157: =SUM(F148:F156) -> 0 | G157: =SUM(G148:G156) -> 0 | H157: 0 | I157: 0 | J157: 0 | L157: =SUM(L148:L156) -> 0
A158: =A140 -> 2 | B158: =B140 -> 2 | C158: Итого за день: | F158: =F147+F157 -> 510 | G158: =G147+G157 -> 19.73 | H158: 20.328 | I158: 74.752 | J158: 563 | L158: =L147+L157 -> 0
A159: 2 | B159: 3 | C159: Завтрак | D159: гор.блюдо | E159: Бифштекс рубленый по-домашнему | F159: 90 | G159: 10.69 | H159: 12.037 | I159: 8.367 | J159: 185 | K159: ТТК от 01.11.2022
D160: гор.блюдо | E160: Каша гречневая вязкая | F160: 150 | G160: 3.462 | H160: 4.634 | I160: 21.786 | J160: 143 | K160: № 304/2015г Дели
D161: гор.напиток | E161: Чай с сахаром | F161: 208 | G161: 0.021 | H161: 0.005 | I161: 7.989 | J161: 32 | K161: ТТК от 2021г
D162: хлеб | E162: Хлеб ржано-пшеничный/ Хлеб пшеничный | F162: 40 | G162: 2.52 | H162: 0.36 | I162: 18.84 | J162: 91
D163: фрукты
D164: Конд. изд. | E164: Печенье весовое | F164: 12.8 | G164: 0.883 | H164: 1.766 | I164: 9.485 | J164: 57
D166: итого | F166: =SUM(F159:F165) -> 500.8 | G166: =SUM(G159:G165) -> 17.576 | H166: =SUM(H159:H165) -> 18.802 | I166: 66.467 | J166: 508
A167: =A159 -> 2 | B167: =B159 -> 3 | C167: Обед | D167: закуска
D168: 1 блюдо
D169: 2 блюдо
D170: гарнир
D171: напиток
D172: хлеб бел.
D173: хлеб черн.
D176: итого | F176: =SUM(F167:F175) -> 0 | G176: =SUM(G167:G175) -> 0 | H176: 0 | I176: 0 | J176: 0 | L176: =SUM(L167:L175) -> 0
A177: =A159 -> 2 | B177: =B159 -> 3 | C177: Итого за день: | F177: =F166+F176 -> 500.8 | G177: =G166+G176 -> 17.576 | H177: 18.802 | I177: 66.467 | J177: 508 | L177: =L166+L176 -> 0
A178: 2 | B178: 4 | C178: Завтрак | D178: гор.блюдо | E178: Котлеты столичные запеченые | F178: 90 | G178: 12.612 | H178: 13.657 | I178: 7.777 | J178: 202 | K178: ТТК от 2023г
D179: гор.блюдо | E179: Каша рисовая вязкая | F179: 150 | G179: 2.303 | H179: 4.129 | I179: 23.944 | J179: 142 | K179: ТТК 2014г
D180: гор.напиток | E180: Напиток из урюка | F180: 200 | G180: 0.02 | I180: 7.99 | J180: 32 | K180: ТТК №2693 от 14.09.2023
D181: хлеб | E181: Хлеб ржано-пшеничный/ Хлеб пшеничный | F181: 40 | G181: 2.52 | H181: 0.36 | I181: 18.84 | J181: 91
D182: фрукты | E182: Плоды и ягоды свежие (яблоки) | F182: 100 | G182: 0.360 | H182: 0.360 | I182: 8.820 | J182: 42 | K182: №338
D185: итого | F185: =F178+F179+F180+F181+F182+F183 -> 580 | G185: =SUM(G178:G184) -> 17.815 | H185: =SUM(H178:H184) -> 18.506 | I185: 67.371 | J185: 509
A186: =A178 -> 2 | B186: =B178 -> 4 | C186: Обед | D186: закуска
D187: 1 блюдо
D188: 2 блюдо
D189: гарнир
D190: напиток
D191: хлеб бел.
D192: хлеб черн.
D195: итого | F195: =SUM(F186:F194) -> 0 | G195: =SUM(G186:G194) -> 0 | H195: =SUM(H186:H194) -> 0 | I195: 0 | J195: 0 | L195: =SUM(L186:L194) -> 0
A196: =A178 -> 2 | B196: =B178 -> 4 | C196: Итого за день: | F196: =F185+F195 -> 580 | G196: =G185+G195 -> 17.815 | H196: 18.506 | I196: 67.371 | J196: 509 | L196: =L185+L195 -> 0
A197: 2 | B197: 5 | C197: Завтрак | D197: гор.блюдо | E197: Жаркое по - домашнему | F197: 190 | G197: 13.05 | H197: 17.03 | I197: 39.88 | J197: 365 | K197: ТТК №2738 от 07.12.2023г2023г
D198: гор.блюдо
D199: гор.напиток | E199: Чай с сахаром | F199: 208 | G199: 0.021 | H199: 0.005 | I199: 7.989 | J199: 32 | K199: ТТК от 2021г
D200: хлеб | E200: Хлеб ржано-пшеничный/ Хлеб пшеничный | F200: 42 | G200: 2.62 | H200: 0.38 | I200: 19.74 | J200: 95
D201: фрукты
E202: Салат из квашеной капусты | F202: 60 | G202: 0.983 | H202: 3.052 | I202: 4.632 | J202: 51 | K202: №47/2015 Дели
D204: итого | F204: =SUM(F197:F203) -> 500 | G204: =SUM(G197:G203) -> 16.674 | H204: =SUM(H197:H203) -> 20.467 | I204: 72.241 | J204: 543
A205: =A197 -> 2 | B205: =B197 -> 5 | C205: Обед | D205: закуска
D206: 1 блюдо
D207: 2 блюдо
D208: гарнир
D209: напиток
D210: хлеб бел.
D211: хлеб черн.
D214: итого | F214: =SUM(F205:F213) -> 0 | G214: =SUM(G205:G213) -> 0 | H214: 0 | I214: 0 | J214: 0 | L214: =SUM(L205:L213) -> 0
A215: =A197 -> 2 | B215: =B197 -> 5 | C215: Итого за день: | F215: =F204+F214 -> 500 | G215: =G204+G214 -> 16.674 | H215: 20.467 | I215: 72.241 | J215: 543 | L215: =L204+L214 -> 0
A216: 2 | B216: 6 | C216: Завтрак | D216: гор.блюдо | E216: Сосиски отварные | F216: 100 | G216: 8.700 | H216: 11.500 | I216: 4.400 | J216: 156 | K216: №243/2015 Дели
D217: гор.блюдо | E217: Макароны твердых сортов отварные | F217: 150 | G217: 5.602 | H217: 5.068 | I217: 35.906 | J217: 212 | K217: №309/2015г Дели
D218: гор.напиток | E218: Чай с сахаром | F218: 208 | G218: 0.021 | H218: 0.005 | I218: 7.989 | J218: 32 | K218: ТТК от 2021г
D219: хлеб | E219: Хлеб ржано-пшеничный/ Хлеб пшеничный | F219: 42 | G219: 2.620 | H219: 0.380 | I219: 19.740 | J219: 95
D220: фрукты
D223: итого | F223: =SUM(F216:F222) -> 500 | G223: =SUM(G216:G222) -> 16.943 | H223: =SUM(H216:H222) -> 16.953 | I223: =SUM(I216:I222) -> 68.035 | J223: =SUM(J216:J222) -> 495
A224: =A216 -> 2 | B224: 6 | C224: Обед | D224: закуска
D225: 1 блюдо
D226: 2 блюдо
D227: гарнир
D228: напиток
D229: хлеб бел.
D230: хлеб черн.
D233: итого | F233: =SUM(F224:F232) -> 0 | G233: =SUM(G224:G232) -> 0 | H233: 0 | I233: 0 | J233: 0 | L233: =SUM(L224:L232) -> 0
A234: =A216 -> 2 | B234: =B216 -> 6 | C234: Итого за день: | F234: =F223+F233 -> 500 | G234: =G223+G233 -> 16.943 | H234: 16.953 | I234: 68.035 | J234: 495 | L234: =L223+L233 -> 0
